Cogmind - Beta 11 X7 @@@ ROGUE MODE // 2021.08.25 @ 10:31:14 Player: PhenomPhear Result: Destroyed by S-27 Virus with Autogun Performance ------------- Evolutions (3) 1500 Regions Visited (4) 800 Robots Destroyed (0) 0 Value Destroyed (0) 0 Prototype IDs (0) 0 Alien Tech Used (0) 0 Bonus (834) 834 TOTAL SCORE: 3134 Bonus ------- Pacifist 834 Cogmind --------- Core Integrity 0/700 Matter 145/300 Energy 99/100 System Corruption 0% Temperature Cool (0) Movement Core (50) Location -7/Factory Parts ------- > --- POWER (1) -------- (None) > --- PROPULSION (8) --- (None) > --- UTILITY (2) ------ (None) > --- WEAPON (2) ------- (None) > --- INVENTORY (5) ---- Heavy Deuterium Engine Peak State ------------ > --- POWER ------------ (None) > --- PROPULSION ------- Hover Unit Hover Unit Hover Unit Hover Unit > --- UTILITY ---------- (None) > --- WEAPON ----------- (None) > --- INVENTORY -------- (None) [Rating: 4] Favorites ----------- Power None Propulsion Hover Unit Hover Unit Hover Unit Utility None Weapon None Build | -11 -10 -9 -8 -7 ------- Run | Scr Mat Mat Mat Fac Slots Evolved 6 | . . 2 2 2 Power . | . . . . . Propulsion 6 | . . 2 2 2 Utility . | . . . . . Weapon . | . . . . . Parts Attached 4 | . . . 4 . Power . | . . . . . Engine . | . . . . . Core . | . . . . . Reactor . | . . . . . Propulsion 4 | . . . 4 . Treads . | . . . . . Leg . | . . . . . Wheel . | . . . . . Hover 4 | . . . 4 . Flight . | . . . . . Utility . | . . . . . Device . | . . . . . Storage . | . . . . . Processor . | . . . . . Hackware . | . . . . . Protection . | . . . . . Artifact . | . . . . . Weapon . | . . . . . Energy Gun . | . . . . . Energy Cannon . | . . . . . Ballistic Gun . | . . . . . Ballistic Cannon . | . . . . . Launcher . | . . . . . Special Weapon . | . . . . . Impact Weapon . | . . . . . Slashing Weapon . | . . . . . Piercing Weapon . | . . . . . Special Melee Weapon . | . . . . . Unidentified Prototypes . | . . . . . Parts Lost 4 | . . . 2 2 Power . | . . . . . Propulsion 4 | . . . 2 2 Utility . | . . . . . Weapon . | . . . . . Highest Loss Streak 2 | . . . 2 2 Average Slot Usage (%) 14 | . . . 33 7 Hover 14 | . . . 33 7 Naked Turns 187 | . 47 54 6 80 Heaviest Build . | . . . . . Greatest Support 24 | 3 3 3 24 3 Greatest Overweight (x) . | . . . . . Average Overweight (x) . | . . . . . Largest Inventory Capacity 5 | 5 5 5 5 5 Average Capacity 5 | 5 5 5 5 5 Most Carried 1 | . . . . 1 Average Carried . | . . . . . Final Capacity 5 | 5 5 5 5 5 Final Carried 1 | . . . . 1 Class Distribution -------------------- 100% | Mutant Dominant Class ---------------- Mutant | -10/Materials Mutant | -9/Materials Mutant | -8/Materials Mutant | -7/Factory Resources | -11 -10 -9 -8 -7 ----------- Run | Scr Mat Mat Mat Fac Matter Collected 44 | 44 . . . . Remotely . | . . . . . Salvage Created . | . . . . . Parts . | . . . . . Haulers Intercepted . | . . . . . Recyclers Shooed . | . . . . . Parts Field Recycled . | . . . . . Retrieved Matter . | . . . . . Parts Self-Destructed . | . . . . . Prevented . | . . . . . Kills | -11 -10 -9 -8 -7 ------- Run | Scr Mat Mat Mat Fac Combat Hostiles Destroyed . | . . . . . Classes Destroyed . | . . . . . Best Kill Streak . | . . . . . Combat Bots Only . | . . . . . Max Kills in Single Turn . | . . . . . Gunslinging . | . . . . . Exploded . | . . . . . Melee . | . . . . . Uniques/NPCs Destroyed . | . . . . . Combat | -11 -10 -9 -8 -7 -------- Run | Scr Mat Mat Mat Fac Damage Taken 943 | . . 63 141 739 Core 809 | . . 63 38 708 Absorbed by Shields . | . . . . . Core Remaining (%) 94 | 100 100 84 93 . Volleys Fired . | . . . . . Largest . | . . . . . Hottest . | . . . . . Shots Fired . | . . . . . Gun . | . . . . . Cannon . | . . . . . Launcher . | . . . . . Special . | . . . . . Kinetic . | . . . . . Thermal . | . . . . . Explosive . | . . . . . Electromagnetic . | . . . . . Robot Hit Streak . | . . . . . Robot Miss Streak . | . . . . . Penetration Max . | . . . . . Secondary Targets . | . . . . . Shots Hit Robots . | . . . . . Core Hits . | . . . . . Critical Kills . | . . . . . Critical Parts Destroyed . | . . . . . Critical Strikes . | . . . . . Melee Attacks . | . . . . . Impact . | . . . . . Slashing . | . . . . . Piercing . | . . . . . Sneak Attacks . | . . . . . Combat Hostiles . | . . . . . Follow-up Attacks . | . . . . . Damage Inflicted 45 | . . 15 . 30 Guns . | . . . . . Cannons . | . . . . . Explosions . | . . . . . Melee . | . . . . . Ramming 45 | . . 15 . 30 Kinetic . | . . . . . Thermal . | . . . . . Explosive . | . . . . . Electromagnetic . | . . . . . Impact . | . . . . . Slashing . | . . . . . Piercing . | . . . . . Highest Corruption 5 | . . . 5 . Average Corruption 3 | . . . 3 . Corruption Purged . | . . . . . Effects 1 | . . . 1 . Message Errors 1 | . . . 1 . Overload Shots . | . . . . . Overflow Damage . | . . . . . Projectiles . | . . . . . Explosions . | . . . . . Melee . | . . . . . Knockbacks . | . . . . . Impact . | . . . . . Kinetic . | . . . . . Secondary . | . . . . . Self-Inflicted Damage 21 | . . 7 . 14 Shots . | . . . . . Rammed 6 | . . 1 . 5 Targets Rammed 6 | . . 1 . 5 Kicked . | . . . . . Crushed . | . . . . . Highest Temperature . | . . . . . Average Temperature . | . . . . . Received Heat Transfer 60 | . . 21 9 30 Siege Activations . | . . . . . Robots Corrupted . | . . . . . Combat Hostiles . | . . . . . Parts Fried . | . . . . . Impact Corruptions . | . . . . . Robots Melted . | . . . . . Combat Hostiles . | . . . . . Parts Melted . | . . . . . Heat Transferred . | . . . . . Parts Sabotaged . | . . . . . Parts Stolen . | . . . . . Parts Stripped . | . . . . . Power Chain Reactions . | . . . . . Missiles Intercepted . | . . . . . Alert | -11 -10 -9 -8 -7 ------- Run | Scr Mat Mat Mat Fac Peak Influence 261 | . 15 20 113 261 Initial 42 | . . 5 8 42 Average 47 | . 9 15 31 83 Maximum Alert Level 1 | . . . . 1 Low Security (%) 96 | 100 100 100 100 90 Level 1 3 | . . . . 9 Level 2 . | . . . . . Level 3 . | . . . . . Level 4 . | . . . . . Level 5 . | . . . . . High Security . | . . . . . Max Security . | . . . . . Squads Dispatched 3 | . . . . 3 Investigation . | . . . . . Extermination . | . . . . . Reinforcement 3 | . . . . 3 Assault . | . . . . . Garrison . | . . . . . Intercept . | . . . . . Construction Impeded 1 | . . . . 1 Haulers Reinforced . | . . . . . Active Scanning Responses . | . . . . . Cargo Convoy Interrupts . | . . . . . Stealth | -11 -10 -9 -8 -7 --------- Run | Scr Mat Mat Mat Fac Distress Signals 2 | . . . 1 1 Communications Jammed . | . . . . . Distress Signals . | . . . . . Times Spotted 41 | . 2 4 14 21 Peak Tracking Total 10 | . 2 4 10 9 Tactical Retreats 5 | . . . 1 4 Traps | -11 -10 -9 -8 -7 ------- Run | Scr Mat Mat Mat Fac Traps Triggered 4 | . . . 3 1 Indirectly . | . . . . . Trap Hack Attempts . | . . . . . Triggered . | . . . . . Disarmed . | . . . . . Reprogrammed . | . . . . . Reused . | . . . . . Traps Extracted . | . . . . . Installed . | . . . . . Triggered . | . . . . . Machines | -11 -10 -9 -8 -7 ---------- Run | Scr Mat Mat Mat Fac Machines Disabled . | . . . . . Max in Single Turn . | . . . . . Machines Sabotaged . | . . . . . Garrisons Compromised . | . . . . . Overloaded Fab Kills . | . . . . . Fab Network Shutdowns . | . . . . . Hacking | -11 -10 -9 -8 -7 --------- Run | Scr Mat Mat Mat Fac Machines Accessed 1 | . . . . 1 Terminals 1 | . . . . 1 Fabricators . | . . . . . Repair Stations . | . . . . . Recycling Units . | . . . . . Scanalyzers . | . . . . . Garrison Access . | . . . . . Total Hacks 1 | . . . . 1 Successful 1 | . . . . 1 Failed . | . . . . . Catastrophic . | . . . . . Database Lockouts . | . . . . . Manual . | . . . . . Terminals 1 | . . . . 1 Fabricators . | . . . . . Repair Stations . | . . . . . Recycling Units . | . . . . . Scanalyzers . | . . . . . Garrison Access . | . . . . . Terminal Hacks 1 | . . . . 1 Zone Layout 1 | . . . . 1 Fabricator Hacks . | . . . . . Repair Station Hacks . | . . . . . Recycling Unit Hacks . | . . . . . Scanalyzer . | . . . . . Garrison Access Hacks . | . . . . . Unauthorized Hacks . | . . . . . Terminals . | . . . . . Fabricators . | . . . . . Repair Stations . | . . . . . Recycling Units . | . . . . . Scanalyzers . | . . . . . Garrison Access . | . . . . . Data Cores Recovered . | . . . . . Used . | . . . . . Hacking Detections . | . . . . . Full Trace Events . | . . . . . Feedback Events . | . . . . . Feedback Blocked . | . . . . . Robot Schematics Acquired . | . . . . . Robots Built . | . . . . . Matter . | . . . . . Time . | . . . . . Total Robot Build Rating . | . . . . . Part Schematics Acquired . | . . . . . Parts Built . | . . . . . Matter . | . . . . . Time . | . . . . . Total Part Build Rating . | . . . . . Parts Repaired . | . . . . . Time . | . . . . . Parts Recycled . | . . . . . Recycled Matter . | . . . . . Retrieved Matter . | . . . . . Retrieved Components . | . . . . . Parts Scanalyzed . | . . . . . Part Schematics Acquired . | . . . . . Parts Damaged . | . . . . . Bothacking | -11 -10 -9 -8 -7 ------------ Run | Scr Mat Mat Mat Fac Used RIF Installer . | . . . . . Robots Hacked . | . . . . . Non-combat . | . . . . . Combat . | . . . . . Robot Hacks Applied . | . . . . . Relay Couplers Released . | . . . . . Robots Rewired . | . . . . . Allies Hacked . | . . . . . Hacks Repelled . | . . . . . Allies | -11 -10 -9 -8 -7 -------- Run | Scr Mat Mat Mat Fac Total Allies . | . . . . . Largest Group . | . . . . . Highest-Rated Group . | . . . . . Highest-Rated Ally . | . . . . . Total Orders . | . . . . . Ally Attacks . | . . . . . Total Damage . | . . . . . Kills . | . . . . . Allies Corrupted . | . . . . . Allies Melted . | . . . . . Intel | -11 -10 -9 -8 -7 ------- Run | Scr Mat Mat Mat Fac Robot Analysis Total . | . . . . . Derelict Logs Recovered . | . . . . . Drone Launches . | . . . . . Drone Recoveries . | . . . . . Exploration | -11 -10 -9 -8 -7 ------------- Run | Scr Mat Mat Mat Fac Turns Passed 410 | 10 47 54 134 165 Spaces Moved 791 | 19 93 106 256 317 Core 778 | 19 93 106 243 317 Treads . | . . . . . Legs . | . . . . . Wheels . | . . . . . Hover 13 | . . . 13 . Flight . | . . . . . Fastest Speed 48 | 50 50 50 48 50 Average Speed 49 | 50 50 50 49 50 Slowest Speed 60 | 50 50 50 60 50 Overloaded Moves . | . . . . . Propulsion Burnouts . | . . . . . Robots Hopped . | . . . . . Cave-ins Triggered . | . . . . . Exploration Rate (%) 16 | 3 23 16 27 15 Regions Visited 4 Branch Regions . Pre-discovered Areas . | . . . . . Known Exits Taken . | . . . . . Unknown Exits Taken 4 | 1 1 1 1 . Scrap Searched . | . . . . . Spaces Dug . | . . . . . Terrain Destroyed . | . . . . . Melee . | . . . . . Projectile . | . . . . . AOE . | . . . . . Terrain Rammed . | . . . . . Walls Destroyed . | . . . . . Machines Disabled . | . . . . . Actions | -11 -10 -9 -8 -7 --------- Run | Scr Mat Mat Mat Fac Total 798 | 18 92 106 259 323 Wait . | . . . . . Move 787 | 18 92 105 255 317 Hop . | . . . . . Pick Up 1 | . . . . 1 Fast Attach 4 | . . . 4 . Attach . | . . . . . Detach . | . . . . . Swap . | . . . . . Drop . | . . . . . Fire . | . . . . . Melee . | . . . . . Ram 6 | . . 1 . 5 Kick . | . . . . . Crush . | . . . . . Escape Stasis . | . . . . . Rewire . | . . . . . Trap . | . . . . . Miscellaneous . | . . . . . Route ------- -11/Scrapyard -10/Materials -9/Materials -8/Materials -7/Factory (discovered 1 exit: [*Sto]) History --------- Turn | Location | Event 3 | -11/Scrapyard | Discovered new exit (range 14) 11 | -11/Scrapyard | Entered Materials 50 | -10/Materials | Discovered new exit (range 15) 58 | -10/Materials | Entered another Materials area 58 | -9/Materials | Evolved 2 slots: Propulsion x2 108 | -9/Materials | Discovered new exit (range 9) 112 | -9/Materials | Entered another Materials area 112 | -8/Materials | Evolved 2 slots: Propulsion x2 238 | -8/Materials | Discovered new exit (range 16) 246 | -8/Materials | Entered Factory 246 | -7/Factory | Evolved 2 slots: Propulsion x2 316 | -7/Factory | Build established: Mutant 367 | -7/Factory | Core integrity fell below 50% 384 | -7/Factory | Core integrity fell below 20% 406 | -7/Factory | Discovered new exit (range 15) 411 | -7/Factory | Destroyed by S-27 Virus with Autogun Last Messages --------------- Downloaded map data. 00375_ Triggered Proton Bomb Trap. 00375_ A bubble of electromagnetic force engulfs the area. 00375_ Proton Bomb Trap short circuited. 00375_ A bubble of electromagnetic force engulfs the area. 00375_ Nuclear Reactor explodes. 00375_ U-05 Engineer builds a Wall. 00376_ U-05 Engineer lays Concrete. 00379_ The unstable cave ceiling collapses. 00380_ U-05 Engineer lays Concrete. 00388_ Slammed into U-05 Engineer. 00388_ ALERT: Construction progress impeded, dispatching reinforcements to local area. 00391_ Slammed into U-05 Engineer. 00396_ O-24 Administrator: "IFF HANDSHAKE FAILED. SECURING TERMINAL." 00404_ Slammed into G-47 Trooper. 00406_ EXIT=FOUND 00407_ Slammed into G-47 Trooper. 00407_ ALERT: Hostiles spotted, dispatching reinforcements to Terminal F010. Map ----- +----------------------------------------------------+ | ?????????????????????????????????????????????????? | | ?????????????????????????????????????????????????? | | ?????????????????????????????????????????????????? | | ?????????????????????????????????????????????????? | | ?????????????????????????????????????????????????? | | ?????????????????????????????????????????????????? | | ?????????????????????????????????????????????????? | | ?????????????????????????????????????????????????? | | ?????????????????????????????????????????????????? | | ?????????????????????????????????????????????????? | | ?????????????????????????????????????????????????? | | ?????????????????????????????? ??????????????????? | | ?????????????????????????????? ??????????????????? | | ?????????????????????????????? ??????????????????? | | ??????????????????????????????